fUST/lending_fUST_20240831
["ID","MTS","AMOUNT","RATE_DAILY","PERIOD"]
[336700561,1725041449022,-409.60287962,0.00034726,31]
[336700562,1725041449032,-501.70695037,0.00034726,31]
[336700563,1725041449041,-500.0,0.00034726,31]
[336700564,1725041449051,-2633.0,0.00034726,31]
[336700565,1725041449061,-500.0,0.00034726,31]
[336700566,1725041449072,-500.0,0.00034726,31]
[336700567,1725041449082,-500.0,0.00034726,31]
[336700568,1725041449092,-500.0,0.00034732,31]
[336700569,1725041449101,-500.0,0.00034732,31]
[336700570,1725041449111,-500.0,0.00034732,31]
[336700571,1725041449120,-595.41735321,0.00034732,31]
[336700572,1725041449130,-500.0,0.00034732,31]
[336700573,1725041449140,-500.0,0.00034732,31]
[336700574,1725041449154,-500.0,0.00034732,31]
[336700575,1725041449165,-500.0,0.00034732,31]
[336700576,1725041449175,-500.0,0.00034732,31]
[336700577,1725041449185,-500.0,0.00034732,31]
[336700578,1725041449195,-500.0,0.00034732,31]
[336700579,1725041449204,-525.28,0.00034732,31]
[336700580,1725041449214,-500.0,0.00034732,31]
[336700581,1725041449225,-500.0,0.00034732,31]
[336700582,1725041449235,-500.0,0.00034732,30]
[336700583,1725041449247,-500.0,0.00034732,31]
[336700584,1725041449257,-151.0,0.00034732,14]
[336700585,1725041449266,-500.0,0.00034732,31]
[336700586,1725041449281,-500.0,0.00034732,31]
[336700587,1725041449291,-500.0,0.00034732,31]
[336700588,1725041449302,-500.0,0.00034732,31]
[336700589,1725041449312,-151.0,0.00034732,14]
[336700590,1725041449322,-218.820096,0.00034732,14]
[336700591,1725041449333,-492.167598,0.00034732,14]
[336700592,1725041449344,-492.167598,0.00034732,14]
[336700593,1725041449355,-151.0,0.00034732,14]
[336700594,1725041449365,-151.0,0.00034732,14]
[336700595,1725041449375,-266.422145,0.00034732,14]
[336700596,1725041449385,-151.0,0.00034732,14]
[336700597,1725041449396,-151.0,0.00034732,14]
[336700598,1725041449406,-151.0,0.00034732,14]
[336700599,1725041449417,-151.0,0.00034732,14]
[336700600,1725041449426,-151.0,0.00034732,14]
[336700601,1725041449436,-151.0,0.00034732,14]
[336700602,1725041449446,-1271.842214,0.00034732,14]
[336700603,1725041449456,-1271.842214,0.00034732,14]
[336700604,1725041449466,-488.170597,0.00034732,14]
[336700605,1725041449476,-488.170597,0.00034732,14]
[336700606,1725041449486,-151.0,0.00034732,14]
[336700607,1725041449496,-500.0,0.00034733,31]
[336700608,1725041449506,-500.0,0.00034733,31]
[336700609,1725041449516,-500.0,0.00034733,31]
[336700610,1725041449526,-500.0,0.00034733,31]
[336700611,1725041449536,-500.0,0.00034733,31]
[336700612,1725041449544,-500.0,0.00034733,31]
[336700613,1725041449555,-500.0,0.00034733,31]
[336700614,1725041449566,-500.0,0.00034733,31]
[336700615,1725041449576,-500.0,0.00034733,31]
[336700616,1725041449585,-603.05987814,0.00034733,31]
[336700617,1725041449595,-500.0,0.00034733,7]
[336700618,1725041449605,-500.0,0.00034733,31]
[336700619,1725041449615,-500.0,0.00034733,31]
[336700620,1725041449626,-500.0,0.00034733,31]
[336700621,1725041449636,-500.0,0.00034733,31]
[336700622,1725041449646,-500.0,0.00034733,31]
[336700623,1725041449656,-500.0,0.00034733,31]
[336700624,1725041449666,-500.0,0.00034733,31]
[336700625,1725041449675,-500.0,0.00034733,31]
[336700626,1725041449685,-500.0,0.00034733,31]
[336700627,1725041449695,-500.0,0.00034733,31]
[336700628,1725041449707,-500.0,0.00034733,31]
[336700629,1725041449718,-500.0,0.00034733,31]
[336700630,1725041449728,-500.0,0.00034733,31]
[336700631,1725041449738,-500.0,0.00034733,31]
[336700632,1725041449749,-500.0,0.00034733,31]
[336700633,1725041449758,-500.0,0.00034733,31]
[336700634,1725041449772,-500.0,0.00034733,31]
[336700635,1725041449781,-500.0,0.00034733,31]
[336700636,1725041449791,-500.0,0.00034733,31]
[336700637,1725041449801,-500.0,0.00034733,14]
[336700638,1725041449811,-500.0,0.00034733,31]
[336700639,1725041449820,-500.0,0.00034733,20]
[336700640,1725041449831,-554.34531003,0.00034733,31]
[336700641,1725041449842,-500.0,0.00034733,31]
[336700642,1725041449852,-181.40439459,0.00034733,31]
[336700643,1725041449863,-500.0,0.00034733,31]
[336700644,1725041449873,-500.0,0.00034733,7]
[336700645,1725041449884,-500.0,0.00034733,31]
[336700646,1725041449894,-500.0,0.00034733,31]
[336700647,1725041449904,-502.79669445,0.00034733,31]
[336700648,1725041449913,-500.0,0.00034733,31]
[336700649,1725041449923,-500.0,0.00034733,31]
[336700650,1725041449932,-500.0,0.00034733,31]
[336700651,1725041449942,-500.0,0.00034733,31]
[336700652,1725041449951,-151.0,0.00034733,14]
[336700653,1725041449971,-153.0,0.00034741,2]
[336700654,1725041449982,-153.0,0.00034741,2]
[336700655,1725041449992,-153.0,0.00034741,2]
[336700656,1725041450001,-153.0,0.00034741,2]
[336700657,1725041450011,-470.22204923,0.00034754,31]
[336700658,1725041450023,-500.0,0.00034754,31]
[336700659,1725041450033,-500.0,0.00034773,4]
[336700660,1725041450043,-500.0,0.00034773,5]
[336700661,1725041450052,-409.5167953,0.00034797,31]
[336700662,1725041450063,-409.5167953,0.00034797,31]
[336700663,1725041450072,-409.5167953,0.00034797,31]
[336700664,1725041450082,-409.5167953,0.00034797,31]
[336700665,1725041450092,-150.112233,0.000349,8]
[336700666,1725041450102,-150.112238,0.000349,8]
[336700667,1725041450112,-150.112234,0.000349,5]
[336700668,1725041450122,-2781.73602759,0.00034938,2]
[336700669,1725041450132,-409.5167953,0.0003495,31]
[336700670,1725041450142,-409.5167953,0.0003495,31]
[336700671,1725041450155,-409.5167953,0.0003495,31]
[336700672,1725041450165,-409.5167953,0.0003495,60]
[336700673,1725041450174,-409.5167953,0.0003495,60]
[336700674,1725041450184,-2830.52,0.00034989,31]
[336700675,1725041450195,-500.0,0.00034989,31]
[336700676,1725041450205,-948.94,0.00034989,31]
[336700677,1725041450215,-500.0,0.00034989,31]
[336700678,1725041450225,-500.0,0.00034989,31]
[336700679,1725041450236,-500.0,0.00034989,31]
[336700680,1725041450245,-3799.44,0.00034989,31]
[336700681,1725041450254,-500.0,0.00034989,31]
[336700682,1725041450264,-500.0,0.00034989,31]
[336700683,1725041450275,-3115.15,0.00034989,31]
[336700684,1725041450285,-2327.3,0.00034989,31]
[336700685,1725041450295,-2603.04,0.00034989,31]
[336700686,1725041450304,-500.0,0.00034989,31]
[336700687,1725041450314,-500.0,0.00034989,31]
[336700688,1725041450323,-1252.81,0.00034989,31]
[336700689,1725041450333,-500.0,0.00034989,31]
[336700690,1725041450342,-500.0,0.00034989,31]
[336700691,1725041450353,-525.19,0.00034989,31]
[336700692,1725041450363,-500.0,0.00034989,31]
[336700693,1725041450373,-2950.21,0.00034989,31]
[336700694,1725041450383,-3130.01,0.00034989,31]
[336700695,1725041450392,-500.0,0.00034995,31]
[336700696,1725041450402,-2965.11,0.00034995,31]
[336700697,1725041450412,-10637.34,0.00034995,8]
[336700698,1725041450422,-500.0,0.00034995,31]
[336700699,1725041450432,-500.0,0.00034995,31]
[336700700,1725041450442,-1050.18,0.00034995,21]
[336700701,1725041450452,-500.0,0.00034995,31]
[336700702,1725041450462,-500.0,0.00034995,31]
[336700703,1725041450473,-1514.2,0.00034995,31]
[336700704,1725041450482,-500.0,0.00034995,31]
[336700705,1725041450492,-500.0,0.00034995,31]
[336700706,1725041450502,-500.0,0.00034995,31]
[336700707,1725041450512,-959.11,0.00034995,31]
[336700708,1725041450523,-500.0,0.00034995,31]
[336700709,1725041450533,-500.0,0.00034995,31]
[336700710,1725041450543,-500.0,0.00034995,31]
[336700711,1725041450553,-500.0,0.00034995,31]
[336700712,1725041450563,-500.0,0.00034995,31]
[336700713,1725041450572,-1583.14,0.00034995,31]
[336700714,1725041450582,-500.0,0.00034995,31]
[336700715,1725041450596,-1028.39,0.00034995,31]
[336700716,1725041450605,-500.0,0.00034995,31]
[336700717,1725041450615,-500.0,0.00034995,31]
[336700718,1725041450625,-500.0,0.00034995,31]
[336700719,1725041450635,-153.67053309,0.00034995,31]
[336700720,1725041450645,-1201.84,0.00034995,31]
[336700721,1725041450655,-500.0,0.00034995,31]
[336700722,1725041450666,-2713.13,0.00034995,31]
[336700723,1725041450676,-500.0,0.00034995,31]
[336700724,1725041450686,-437.35340175,0.00034995,31]
[336700725,1725041450698,-500.0,0.00034995,31]
[336700726,1725041450708,-4356.45,0.00034995,31]
[336700727,1725041450718,-500.0,0.00034995,31]
[336700728,1725041450729,-500.0,0.00034995,31]
[336700729,1725041450739,-500.0,0.00034995,31]
[336700730,1725041450749,-500.0,0.00034995,31]
[336700731,1725041450759,-500.0,0.00034995,31]
[336700732,1725041450769,-500.0,0.00035,31]
[336700733,1725041450780,-500.0,0.00035,31]
[336700734,1725041450789,-502.05045916,0.00035,31]
[336700735,1725041450798,-500.0,0.00035,31]
[336700736,1725041450809,-159.8404146,0.00035,31]
[336700737,1725041450819,-500.0,0.00035,31]
[336700738,1725041450829,-253.27313932,0.00035,31]
[336700760,1725041981367,161.801809,0.00014247,2]
[336700796,1725042407157,-214.910645,0.0001863,2]
[336700797,1725042407182,-76.2378776,0.00024859,2]
[336700830,1725042632591,-200.353218,0.0001863,2]
[336700831,1725042632602,-200.353218,0.00024859,2]
[336700832,1725042632612,-784.94358345,0.00027794,2]
[336700833,1725042632623,-161.801809,0.00027884,2]
[336700834,1725042632633,-158.604313,0.00028877,2]
[336700835,1725042632644,-472.6363864,0.00028896,2]
[336700836,1725042632654,-161.7865797,0.00029151,2]
[336700837,1725042632663,-500.0,0.00029415,2]
[336700838,1725042632673,-500.0,0.00029706,2]
[336700839,1725042632683,-200.353218,0.00031089,2]
[336700840,1725042632700,-2981.91244724,0.00032,60]
[336700841,1725042632710,-162.331416,0.00032092,2]
[336700842,1725042632719,-300.0,0.00032271,2]
[336700843,1725042632731,-150.0,0.00032524,14]
[336700844,1725042632741,-150.0,0.00032524,14]
[336700845,1725042632755,-200.0,0.00032524,14]
[336700846,1725042632765,-16798.95356655,0.00032524,32]
[336700862,1725042638783,-58455.04643345,0.00032524,32]
[336700863,1725042638794,-2659.99893145,0.00032703,2]
[336700864,1725042638804,-700.0,0.00032803,7]
[336700865,1725042638814,-764.04733965,0.00032989,3]
[336700866,1725042638829,-2515.83266035,0.00032989,3]
[336700867,1725042638839,-2733.23,0.00032989,3]
[336700868,1725042638849,-500.0,0.00032998,2]
[336700869,1725042638859,-500.0,0.00032998,31]
[336700870,1725042638868,-500.0,0.00032998,31]
[336700871,1725042638878,-500.0,0.00032998,31]
[336700872,1725042638888,-500.0,0.00032998,31]
[336700873,1725042638897,-500.0,0.00032998,31]
[336700874,1725042638908,-500.0,0.00032998,31]
[336700875,1725042638918,-500.0,0.00032999,31]
[336700876,1725042638928,-2663.99,0.00032999,31]
[336700877,1725042638938,-9479.79,0.00032999,8]
[336700878,1725042638952,-960.58,0.00032999,21]
[336700879,1725042638962,-500.0,0.00032999,31]
[336700880,1725042638972,-500.0,0.00032999,31]
[336700881,1725042638982,-1366.59,0.00032999,31]
[336700882,1725042638991,-500.0,0.00032999,31]
[336700883,1725042639001,-500.0,0.00032999,31]
[336700884,1725042639012,-500.0,0.00032999,31]
[336700885,1725042639022,-500.0,0.00032999,31]
[336700886,1725042639032,-500.0,0.00032999,31]
[336700887,1725042639041,-500.0,0.00032999,31]
[336700888,1725042639050,-1456.37,0.00032999,31]
[336700889,1725042639060,-500.0,0.00032999,31]
[336700890,1725042639070,-500.0,0.00032999,31]
[336700891,1725042639080,-500.0,0.00032999,31]
[336700892,1725042639089,-500.0,0.00032999,31]
[336700893,1725042639099,-500.0,0.00032999,31]
[336700894,1725042639109,-500.0,0.00032999,31]
[336700895,1725042639119,-1426.92,0.00032999,31]
[336700896,1725042639128,-2509.53,0.00032999,31]
[336700897,1725042639138,-500.0,0.00032999,31]
[336700898,1725042639148,-500.0,0.00032999,31]
[336700899,1725042639158,-941.5,0.00032999,31]
[336700900,1725042639168,-500.0,0.00032999,31]
[336700901,1725042639178,-500.0,0.00032999,31]
[336700902,1725042639187,-871.99,0.00032999,31]
[336700903,1725042639407,-500.0,0.00032999,31]
[336700904,1725042639419,-500.0,0.00032999,31]
[336700905,1725042639429,-500.0,0.00032999,31]
[336700906,1725042639439,-500.0,0.00032999,31]
[336700907,1725042639451,-500.0,0.00032999,31]
[336700908,1725042639461,-500.0,0.00032999,31]
[336700909,1725042639470,-1146.02,0.00032999,31]
[336700910,1725042639480,-3378.41,0.00032999,31]
[336700911,1725042639490,-500.0,0.00032999,31]
[336700912,1725042639500,-500.0,0.00032999,31]
[336700913,1725042639510,-500.0,0.00032999,31]
[336700914,1725042639520,-500.0,0.00032999,31]
[336700915,1725042639537,-500.0,0.00032999,31]
[336700916,1725042639547,-2537.08,0.00032999,31]
[336700917,1725042639556,-2339.89,0.00032999,31]
[336700918,1725042639566,-2792.99,0.00032999,31]
[336700919,1725042639578,-500.0,0.00032999,31]
[336700920,1725042639588,-500.0,0.00032999,31]
[336700921,1725042639597,-2085.77,0.00032999,31]
[336700922,1725042639607,-500.0,0.00032999,31]
[336700923,1725042639618,-500.0,0.00032999,31]
[336700924,1725042639629,-500.0,0.00032999,31]
[336700925,1725042639638,-1096.21,0.00032999,31]
[336700926,1725042639647,-4066.07,0.00032999,31]
[336700927,1725042639657,-500.0,0.00032999,31]
[336700928,1725042639666,-500.0,0.00032999,31]
[336700929,1725042639675,-500.0,0.00032999,31]
[336700930,1725042639686,-500.0,0.00032999,31]
[336700931,1725042639699,-501.2,0.00032999,31]
[336700932,1725042639708,-500.0,0.00032999,31]
[336700933,1725042639718,-500.0,0.00032999,31]
[336700934,1725042639728,-500.0,0.00032999,31]
[336700935,1725042639738,-3256.18,0.00032999,31]
[336700936,1725042639748,-2623.1,0.00032999,31]
[336700937,1725042639757,-1771.74,0.00032999,31]
[336700938,1725042639768,-500.0,0.00032999,31]
[336700939,1725042639778,-42323.83645,0.00033,2]
[336700940,1725042639789,-191.91479301,0.00033173,2]
[336700941,1725042639800,-30600.06028884,0.00033243,4]
[336700948,1725042640760,-58478.21630406,0.00033243,4]
[336700949,1725042640769,-229.49375645,0.00033262,7]
[336700950,1725042640779,-500.0,0.00033262,7]
[336700951,1725042640788,-500.0,0.00033262,7]
[336700952,1725042640798,-500.0,0.00033262,7]
[336700953,1725042640809,-500.0,0.00033262,7]
[336700954,1725042640819,-500.0,0.00033262,7]
[336700955,1725042640829,-500.0,0.00033262,7]
[336700956,1725042640839,-642.89948952,0.00033262,7]
[336700957,1725042640849,-500.0,0.00033262,7]
[336700958,1725042640858,-500.0,0.00033262,7]
[336700959,1725042640867,-501.26991979,0.00033263,4]
[336700960,1725042640888,-71397.85794835,0.00033263,4]
[336700980,1725042643956,-500.0,0.00032998,31]
[336700981,1725042643967,-89.25,0.00033263,4]
[336700982,1725042644063,-1357.46314,0.00033263,4]
[336700984,1725042644075,-15732.43558476,0.00033263,4]
[336700985,1725042644085,-500.0,0.00033272,31]
[336700986,1725042644095,-500.0,0.00033272,2]
[336700987,1725042644104,-500.0,0.00033272,31]
[336700988,1725042644114,-500.0,0.00033272,31]
[336700989,1725042644124,-500.0,0.00033272,31]
[336700990,1725042644134,-500.0,0.00033272,31]
[336700991,1725042644143,-500.0,0.00033272,31]
[336700992,1725042644155,-500.0,0.00033272,31]
[336700993,1725042644164,-500.0,0.00033273,31]
[336700994,1725042644174,-2663.99,0.00033273,31]
[336700995,1725042644184,-5503.57440524,0.00033273,8]
[336700996,1725042644197,-3976.21559476,0.00033273,8]
[336700997,1725042644206,-960.58,0.00033273,21]
[336700998,1725042644215,-500.0,0.00033273,31]
[336700999,1725042644225,-500.0,0.00033273,31]
[336701000,1725042644234,-1366.59,0.00033273,31]
[336701001,1725042644244,-605.75300056,0.00033273,31]
[336701002,1725042644254,-500.0,0.00033273,31]
[336701003,1725042644263,-500.0,0.00033273,31]
[336701004,1725042644273,-500.0,0.00033273,31]
[336701005,1725042644282,-500.0,0.00033273,31]
[336701006,1725042644292,-500.0,0.00033273,31]
[336701007,1725042644301,-1456.37,0.00033273,31]
[336701008,1725042644310,-500.0,0.00033273,31]
[336701009,1725042644320,-500.0,0.00033273,31]
[336701010,1725042644329,-500.0,0.00033273,31]
[336701011,1725042644338,-500.0,0.00033273,31]
[336701012,1725042644347,-500.0,0.00033273,31]
[336701013,1725042644357,-1426.92,0.00033273,31]
[336701014,1725042644366,-2509.53,0.00033273,31]
[336701015,1725042644376,-500.0,0.00033273,31]
[336701016,1725042644385,-500.0,0.00033273,31]
[336701017,1725042644394,-941.5,0.00033273,31]
[336701018,1725042644404,-500.0,0.00033273,31]
[336701019,1725042644415,-500.0,0.00033273,31]
[336701020,1725042644424,-871.99,0.00033273,31]
[336701022,1725042644433,-500.0,0.00033273,31]
[336701023,1725042644443,-500.0,0.00033273,31]
[336701025,1725042644455,-500.0,0.00033273,31]
[336701026,1725042644464,-500.0,0.00033273,31]
[336701027,1725042644474,-500.0,0.00033273,31]
[336701028,1725042644484,-500.0,0.00033273,31]
[336701029,1725042644493,-1146.02,0.00033273,31]
[336701030,1725042644505,-3378.41,0.00033273,31]
[336701031,1725042644517,-500.0,0.00033273,31]
[336701032,1725042644527,-500.0,0.00033273,31]
[336701033,1725042644538,-500.0,0.00033273,31]
[336701034,1725042644554,-500.0,0.00033273,31]
[336701035,1725042644565,-500.0,0.00033273,31]
[336701036,1725042644578,-2537.08,0.00033273,31]
[336701037,1725042644588,-2339.89,0.00033273,31]
[336701038,1725042644598,-2792.99,0.00033273,31]
[336701039,1725042644607,-500.0,0.00033273,31]
[336701040,1725042644618,-500.0,0.00033273,31]
[336701041,1725042644629,-2085.77,0.00033273,31]
[336701042,1725042644638,-500.0,0.00033273,31]
[336701043,1725042644647,-500.0,0.00033273,31]
[336701044,1725042644656,-1096.21,0.00033273,31]
[336701045,1725042644666,-4066.07,0.00033273,31]
[336701046,1725042644675,-500.0,0.00033273,31]
[336701047,1725042644685,-500.0,0.00033273,31]
[336701048,1725042644695,-500.0,0.00033273,31]
[336701049,1725042644704,-500.0,0.00033273,31]
[336701050,1725042644714,-501.2,0.00033273,31]
[336701051,1725042644723,-500.0,0.00033273,31]
[336701052,1725042644733,-500.0,0.00033273,31]
[336701053,1725042644742,-500.0,0.00033273,31]
[336701054,1725042644752,-3256.18,0.00033273,31]
[336701055,1725042644761,-2623.1,0.00033273,31]
[336701056,1725042644771,-1771.74,0.00033273,31]
[336701057,1725042644780,-500.0,0.00033273,31]
[336701058,1725042644789,-818.747697,0.00033367,2]
[336701059,1725042644798,-552.31845386,0.00033537,5]
[336701060,1725042644807,-298.4339,0.00033537,14]
[336701061,1725042644817,-11067.27564681,0.00033537,4]
[336701062,1725042644863,-32.34983584,0.00033537,4]
[336701072,1725042646526,-1373.8392934,0.00032999,31]
[336701073,1725042646548,-1240.6707066,0.00032999,31]
[336701074,1725042646559,-500.0,0.00032999,31]
[336701075,1725042646568,-2614.51,0.00033273,31]
[336701076,1725042646578,-380.84,0.00033273,31]
[336701077,1725042646591,-2277.69,0.00033527,3]
[336701078,1725042646601,-320.81618691,0.00033537,4]
[336701098,1725042997486,161.801809,0.00014247,2]
[336701114,1725043601538,161.801809,0.00014247,2]
[336701122,1725043823201,-151.0,0.0003,120]
[336701123,1725043826509,151.0,0.0003,120]
[336701136,1725043832598,-170.300235,0.0001863,2]
[336701137,1725043832611,-4605.131779,0.000213,2]
[336701138,1725043832620,-1500.0,0.000225,8]
[336701139,1725043832630,-2000.0,0.000231,12]
[336701140,1725043832640,-170.300235,0.00024859,2]
[336701141,1725043832650,-500.0,0.0002679,2]
[336701142,1725043832659,-500.0,0.00028216,2]
[336701143,1725043832668,-158.604313,0.00029497,2]
[336701145,1725043832677,-11711.13089095,0.0003,2]
[336701152,1725043838958,-5596.99996204,0.0003,2]
[336701153,1725043838969,-223.0,0.00030067,6]
[336701154,1725043838979,-500.0,0.00030744,7]
[336701155,1725043838989,-223.0,0.0003107,7]
[336701156,1725043838999,-170.300235,0.00031089,2]
[336701157,1725043839008,-151.0,0.00031945,120]
[336701158,1725043839018,-5196.2517199,0.00031988,2]
[336701159,1725043839029,-223.0,0.00032073,7]
[336701160,1725043839038,-5196.2517199,0.00032282,2]
[336701161,1725043839048,-2327.49906501,0.00032419,2]
[336701162,1725043839058,-5196.2517199,0.000325,2]
[336701163,1725043839067,-151.0,0.00032519,14]
[336701164,1725043839077,-500.0,0.00032519,5]
[336701165,1725043839087,-500.0,0.00032519,5]
[336701166,1725043839098,-379.83483614,0.00032519,5]
[336701167,1725043839108,-500.0,0.00032519,5]
[336701168,1725043839117,-5196.2517199,0.00032606,2]
[336701169,1725043839127,-153.0,0.00032685,2]
[336701170,1725043839136,-151.0,0.0003274,120]
[336701171,1725043839145,-153.0,0.00032856,2]
[336701172,1725043839155,-500.0,0.00032876,31]
[336701173,1725043839165,-2524.91,0.00032876,31]
[336701174,1725043839174,-500.0,0.00032876,31]
[336701175,1725043839184,-389.73523834,0.00032876,31]
[336701176,1725043839194,-210.66146475,0.00032876,31]
[336701177,1725043839203,-500.0,0.00032876,31]
[336701178,1725043839213,-882.6,0.00032876,31]
[336701179,1725043839222,-500.0,0.00032876,31]
[336701180,1725043839232,-500.0,0.00032876,31]
[336701181,1725043839241,-500.0,0.00032876,31]
[336701182,1725043839250,-3400.35,0.00032876,31]
[336701183,1725043839259,-500.0,0.00032876,31]
[336701184,1725043839270,-500.0,0.00032876,31]
[336701185,1725043839280,-2808.91,0.00032876,31]
[336701186,1725043839290,-2352.41,0.00032876,31]
[336701187,1725043839299,-2097.76,0.00032876,31]
[336701188,1725043839308,-500.0,0.00032876,31]
[336701189,1725043839318,-500.0,0.00032876,31]
[336701190,1725043839328,-500.0,0.00032876,31]
[336701191,1725043839337,-500.0,0.00032876,31]
[336701192,1725043839348,-500.0,0.00032876,31]
[336701193,1725043839357,-1105.01,0.00032876,31]
[336701194,1725043839367,-501.34,0.00032876,31]
[336701195,1725043839376,-500.0,0.00032876,31]
[336701196,1725043839386,-500.0,0.00032876,31]
[336701197,1725043839396,-500.0,0.00032876,2]
[336701198,1725043839405,-500.0,0.00032876,31]
[336701199,1725043839416,-2640.13,0.00032876,31]
[336701200,1725043839426,-3238.68,0.00032876,31]
[336701201,1725043839435,-5196.2517201,0.00032886,2]
[336701202,1725043839444,-850.65,0.00032888,3]
[336701203,1725043839454,-6025.21,0.00032888,3]
[336701204,1725043839464,-5021.01,0.00032888,3]
[336701205,1725043839474,-500.0,0.00032897,31]
[336701206,1725043839484,-209.11489532,0.00032898,2]
[336701207,1725043839494,-26064.37400469,0.00032898,120]
[336701208,1725043839504,-450.16806322,0.00032973,5]
[336701209,1725043839514,-317.62533029,0.00032975,7]
[336701210,1725043839524,-500.0,0.00032975,7]
[336701211,1725043839534,-209.29703361,0.00032975,7]
[336701212,1725043839543,-244.70704599,0.00032975,7]
[336701213,1725043839552,-500.0,0.00032975,7]
[336701214,1725043839563,-500.0,0.00032975,7]
[336701215,1725043839573,-500.0,0.00032975,7]
[336701216,1725043839582,-423.36521092,0.00032975,7]
[336701217,1725043839594,-180.84336102,0.00032975,7]
[336701218,1725043839603,-370.00013795,0.00032975,7]
[336701219,1725043839614,-500.0,0.00032975,7]
[336701220,1725043839624,-500.0,0.00032975,7]
[336701221,1725043839634,-500.0,0.00032975,7]
[336701222,1725043839643,-595.68150445,0.00032975,7]
[336701223,1725043839654,-500.0,0.00032975,7]
[336701224,1725043839663,-500.0,0.00032975,7]
[336701225,1725043839673,-500.0,0.00032975,7]
[336701226,1725043839682,-215920.859359,0.00032976,4]
[336701227,1725043839691,-1656.95536159,0.00032977,5]
[336701228,1725043839700,-1873.73726723,0.00032977,5]
[336701229,1725043839710,-215920.859359,0.00032977,4]
[336701230,1725043839719,-500.0,0.00032985,31]
[336701231,1725043839728,-500.0,0.00032985,31]
[336701232,1725043839738,-500.0,0.00032986,31]
[336701233,1725043839747,-500.0,0.00032986,31]
[336701234,1725043839756,-500.0,0.00032986,31]
[336701235,1725043839766,-313.57798138,0.00032986,31]
[336701236,1725043839776,-500.0,0.00032986,31]
[336701237,1725043839785,-500.0,0.00032986,31]
[336701238,1725043839795,-500.0,0.00032986,31]
[336701239,1725043839804,-500.0,0.00032986,31]
[336701240,1725043839814,-500.0,0.00032986,31]
[336701241,1725043839824,-508.83337001,0.00032986,31]
[336701242,1725043839833,-503.43996752,0.00032986,31]
[336701243,1725043839845,-500.0,0.00032986,31]
[336701244,1725043839862,-500.0,0.00032986,31]
[336701245,1725043839871,-500.0,0.00032986,31]
[336701246,1725043839881,-500.0,0.00032986,31]
[336701247,1725043839891,-500.0,0.00032986,31]
[336701248,1725043839900,-500.0,0.00032986,31]
[336701249,1725043839910,-500.0,0.00032986,31]
[336701250,1725043839919,-500.0,0.00032986,31]
[336701251,1725043839928,-150.0,0.00032986,31]
[336701252,1725043839937,-500.0,0.00032986,31]
[336701253,1725043839947,-500.0,0.00032986,31]
[336701254,1725043839960,-500.0,0.00032986,31]
[336701255,1725043839969,-500.0,0.00032986,31]
[336701256,1725043839979,-501.01595461,0.00032986,31]
[336701257,1725043839988,-2567.48,0.00032986,31]
[336701258,1725043839998,-500.0,0.00032986,31]
[336701259,1725043840007,-500.0,0.00032986,31]
[336701260,1725043840017,-500.0,0.00032986,31]